Cogmind - Beta 15 @@@ ROGUE MODE // 2025.10.20 @ 17:53:53 Player: Triffids Result: Self-destructed Performance ------------- Evolutions (1) 500 Regions Visited (3) 600 Robots Destroyed (17) 85 Value Destroyed (183) 183 Prototype IDs (4) 80 Alien Tech Used (0) 0 Bonus (0) 0 TOTAL SCORE: 1448 Bonus ------- None Cogmind --------- Core Integrity 345/400 Matter 300/300 Energy 265/265 System Corruption 0% Temperature Cool (0) Movement Rolling (90) Location -9/Storage Parts ------- > --- POWER (1) -------- Improved Ion Engine > --- PROPULSION (2) --- Wheel Compact Wheel > --- UTILITY (4) ------ Improved Terrain Scanner Terrain Scan Processor Seismic Detector Light Armor Plating > --- WEAPON (2) ------- Spread Laser Assault Rifle > --- INVENTORY (5) ---- Ion Engine Wheel Beam Cannon Grenade Launcher Mining Laser Peak State ------------ > --- POWER ------------ Improved Ion Engine > --- PROPULSION ------- Wheel Compact Wheel > --- UTILITY ---------- Improved Terrain Scanner Terrain Scan Processor Seismic Detector Light Armor Plating > --- WEAPON ----------- Spread Laser Assault Rifle > --- INVENTORY -------- Ion Engine Wheel Assault Rifle Grenade Launcher [Rating: 14] Favorites ----------- Power Ion Engine Engine Ion Engine Propulsion Wheel Treads Light Treads Wheel Wheel Utility Seismic Detector Device Seismic Detector Processor Terrain Scan Processor Protection Propulsion Shielding Weapon Assault Rifle Energy Gun Spread Laser Ballistic Gun Assault Rifle Ballistic Cannon Light Cannon Launcher Grenade Launcher Special Weapon Mining Laser Build | -11 -10 -9 -9 ------- Run | Yrd Mat Mat Sto Slots Evolved 2 | . . 2 . Power . | . . . . Propulsion . | . . . . Utility 2 | . . 2 . Weapon . | . . . . Parts Attached 17 | 6 2 7 2 Power 2 | 1 . 1 . Engine 2 | 1 . 1 . Core . | . . . . Reactor . | . . . . Propulsion 4 | 2 . 2 . Treads 1 | . . 1 . Leg . | . . . . Wheel 3 | 2 . 1 . Hover . | . . . . Flight . | . . . . Utility 5 | 1 1 3 . Device 2 | 1 . 1 . Storage . | . . . . Processor 1 | . . 1 . Hackware . | . . . . Protection 2 | . 1 1 . Artifact . | . . . . Weapon 6 | 2 1 1 2 Energy Gun 1 | . . . 1 Energy Cannon . | . . . . Ballistic Gun 2 | 2 . . . Ballistic Cannon 1 | . 1 . . Launcher 1 | . . 1 . Special Weapon 1 | . . . 1 Impact Weapon . | . . . . Slashing Weapon . | . . . . Piercing Weapon . | . . . . Special Melee Weapon . | . . . . Unidentified Prototypes . | . . . . Parts Lost 1 | . . 1 . Power . | . . . . Propulsion 1 | . . 1 . Utility . | . . . . Weapon . | . . . . Highest Loss Streak 1 | . . 1 . To Critical Strikes . | . . . . Average Backups 3 | 2 4 3 5 Power . | . . . 1 Propulsion . | . . . 1 Utility . | . 1 . . Weapon 2 | 1 2 3 3 Tool/Special . | . . . . Unused Backups 3 | . 1 . 2 Power 1 | . 1 . . Propulsion 1 | . . . 1 Utility . | . . . . Weapon 1 | . . . 1 Tool/Special . | . . . . Average Slot Usage (%) 99 | . 98 99 100 Engine 11 | . 14 11 11 Wheel 22 | . 28 19 22 Device 19 | . 14 22 22 Processor 7 | . . 10 11 Protection 11 | . 12 11 11 Energy Gun 1 | . . . 7 Ballistic Gun 12 | . 16 11 11 Ballistic Cannon 9 | . 12 10 3 Peak Build Rating 14 | 6 7 13 14 Average Rating 10 | 4 6 12 13 On Entrance 6 | . 6 7 13 Naked Turns . | . . . . Heaviest Build 17 | 10 12 17 17 Greatest Support 26 | 20 20 26 26 Greatest Overweight (x) 1 | . . 1 . Average Overweight (x) . | . . . . Largest Inventory Capacity 5 | 5 5 5 5 Average Capacity 5 | 5 5 5 5 Most Carried 5 | 5 5 5 5 Average Carried 3 | 2 4 3 4 Final Capacity 5 | 5 5 5 5 Final Carried 5 | 4 5 5 5 Class Distribution -------------------- 63% | Mutant 36% | Scavenger-Mutant Dominant Class ---------------- Mutant | -10/Materials Mutant | -9/Materials Scavenger-Mutant | -9/Storage Resources | -11 -10 -9 -9 ----------- Run | Yrd Mat Mat Sto Matter Collected 641 | 278 41 267 55 Remotely . | . . . . Salvage Created 435 | 57 70 308 . Parts 40 | 12 8 20 . Haulers Intercepted 2 | . 1 1 . Recyclers Shooed . | . . . . Parts Field Recycled . | . . . . Retrieved Matter . | . . . . Parts Self-Destructed . | . . . . Prevented . | . . . . Kills | -11 -10 -9 -9 ------- Run | Yrd Mat Mat Sto Combat Hostiles Destroyed 6 | . . 6 . Guns 3 | . . 3 . Cannons 1 | . . 1 . AOE 2 | . . 2 . Classes Destroyed 8 | 1 2 5 . Worker 3 | . . 3 . Builder 2 | . 1 1 . Tunneler 3 | 3 . . . Hauler 2 | . 1 1 . Recycler 1 | . . 1 . Swarmer 4 | . . 4 . Grunt 1 | . . 1 . Sentry 1 | . . 1 . Best Kill Streak 7 | 2 1 7 . Combat Bots Only 4 | . . 4 . Max Kills in Single Turn 2 | 1 1 2 . Gunslinging . | . . . . Exploded 1 | . . 1 . Melee . | . . . . Uniques/NPCs Destroyed . | . . . . Combat | -11 -10 -9 -9 -------- Run | Yrd Mat Mat Sto Hostile Shots Fired 49 | . . 49 . Missed 15 | . . 15 . Hits 34 | . . 34 . Projectile 34 | . . 34 . Damage Taken 323 | . . 323 . Core 55 | . . 55 . Absorbed by Shields . | . . . . Redirected to Shielding 13 | . . 13 . Core Remaining (%) 100 | 100 100 . . Volleys Fired 36 | 3 3 29 1 Largest 2 | 2 2 2 1 Hottest 100 | 40 50 50 100 Shots Fired 71 | 6 6 58 1 Gun 38 | 6 3 29 . Cannon 28 | . 3 25 . Launcher 4 | . . 4 . Special 1 | . . . 1 Kinetic 66 | 6 6 54 . Thermal 1 | . . . 1 Explosive 4 | . . 4 . Electromagnetic . | . . . . Robot Hit Streak 6 | 3 2 6 . Robot Miss Streak 4 | . 1 4 . Penetration Max . | . . . . Secondary Targets . | . . . . Shots Hit Robots 39 | 3 3 33 . Core Hits 28 | 3 2 23 . Critical Kills . | . . . . Critical Parts Destroyed . | . . . . Critical Strikes 2 | . . 2 . Blast 2 | . . 2 . Melee Attacks . | . . . . Impact . | . . . . Slashing . | . . . . Piercing . | . . . . Sneak Attacks . | . . . . Combat Hostiles . | . . . . Follow-up Attacks . | . . . . Damage Inflicted 788 | 43 50 695 . Guns 278 | 43 15 220 . Cannons 304 | . 35 269 . Explosions 206 | . . 206 . Melee . | . . . . Ramming . | . . . . Kinetic 582 | 43 50 489 . Thermal . | . . . . Explosive 206 | . . 206 . Electromagnetic . | . . . . Impact . | . . . . Slashing . | . . . . Piercing . | . . . . Highest Corruption . | . . . . Average Corruption . | . . . . Corruption Purged . | . . . . Corruption Blocked . | . . . . Overload Shots . | . . . . Overflow Damage 1 | . . 1 . Projectiles 1 | . . 1 . Explosions . | . . . . Melee . | . . . . Knockbacks 2 | . . 2 . Impact . | . . . . Kinetic 2 | . . 2 . Secondary . | . . . . Self-Inflicted Damage . | . . . . Shots . | . . . . Rammed . | . . . . Targets Rammed . | . . . . Kicked . | . . . . Crushed . | . . . . Highest Temperature 24 | . . 6 24 Average Temperature 6 | . . 3 13 Received Heat Transfer 66 | . . 66 . Siege Activations . | . . . . Martial Activations . | . . . . Shielding Activations . | . . . . Robots Disrupted . | . . . . Combat Hostiles . | . . . . Robots Corrupted . | . . . . Combat Hostiles . | . . . . Parts Fried . | . . . . Impact Corruptions . | . . . . Robots Melted . | . . . . Combat Hostiles . | . . . . Parts Melted . | . . . . Heat Transferred . | . . . . Parts Sabotaged . | . . . . Parts Stolen . | . . . . Parts Stripped . | . . . . Power Chain Reactions . | . . . . Alert | -11 -10 -9 -9 ------- Run | Yrd Mat Mat Sto Maximum Alert Level . | . . . . Low Security (%) 100 | 100 100 100 100 Level 1 . | . . . . Level 2 . | . . . . Level 3 . | . . . . Level 4 . | . . . . Level 5 . | . . . . High Security . | . . . . Max Security . | . . . . Peak Influence 149 | 10 5 149 77 Initial 62 | . . . 62 Average 32 | 2 . 49 55 Influence Increases 342 | 15 22 284 21 Destroy 0b10 Robot/C 120 | . . 120 . Destroy 0b10 Robot/NC 55 | 15 10 30 . Destroy Leader 34 | . 2 32 . Successful Hack 20 | . 9 5 6 Select Force Hacks 60 | . . 60 . Disable Machine 30 | . . 15 15 Destroy Structure 23 | . 1 22 . Influence Decreases 309 | 15 22 135 137 Entered New Map 87 | . . . 87 Time Decay 212 | 15 22 125 50 Lost Part 10 | . . 10 . Squads Dispatched 4 | . 1 2 1 Investigation 4 | . 1 2 1 Extermination . | . . . . Reinforcement . | . . . . Assault . | . . . . Garrison . | . . . . Intercept . | . . . . Searches Triggered . | . . . . Construction Impeded . | . . . . Haulers Reinforced . | . . . . Active Scanning Responses . | . . . . Cargo Convoy Interrupts . | . . . . Stealth | -11 -10 -9 -9 --------- Run | Yrd Mat Mat Sto Distress Signals 1 | . . 1 . Communications Jammed . | . . . . Distress Signals . | . . . . Times Spotted 10 | . . 10 . Peak Tracking Total 4 | . . 4 . Tactical Retreats . | . . . . Traps | -11 -10 -9 -9 ------- Run | Yrd Mat Mat Sto Traps Triggered . | . . . . Indirectly . | . . . . Trap Hack Attempts . | . . . . Triggered . | . . . . Disarmed . | . . . . Reprogrammed . | . . . . Reused . | . . . . Traps Extracted . | . . . . Installed . | . . . . Triggered . | . . . . Machines | -11 -10 -9 -9 ---------- Run | Yrd Mat Mat Sto Machines Disabled 2 | . . 1 1 Max in Single Turn 1 | . . 1 1 Machines Repaired . | . . . . Machines Dismantled . | . . . . Machines Sabotaged . | . . . . Overloaded Fab Kills . | . . . . Hacking | -11 -10 -9 -9 --------- Run | Yrd Mat Mat Sto Machines Accessed 13 | . 8 3 2 Terminals 9 | . 6 1 2 Fabricators . | . . . . Repair Stations . | . . . . Recycling Units 2 | . 2 . . Scanalyzers 2 | . . 2 . Garrison Access . | . . . . Total Hacks 36 | . 23 8 5 Successful 18 | . 13 4 1 Failed 18 | . 10 4 4 Catastrophic . | . . . . Database Lockouts . | . . . . Manual 23 | . 12 8 3 Terminals 29 | . 18 6 5 Fabricators . | . . . . Repair Stations . | . . . . Recycling Units 5 | . 5 . . Scanalyzers 2 | . . 2 . Garrison Access . | . . . . Terminal Hacks 10 | . 8 1 1 Robot Analysis 2 | . 2 . . Prototype ID Bank 2 | . 2 . . Emergency Access Points 1 | . 1 . . Terminal Index 2 | . 1 1 . Recall Investigation 1 | . 1 . . Zone Layout 2 | . 1 . 1 Fabricator Hacks . | . . . . Repair Station Hacks . | . . . . Recycling Unit Hacks 3 | . 3 . . Report Inventory 2 | . 2 . . Retrieve Components 1 | . 1 . . Scanalyzer . | . . . . Garrison Access Hacks . | . . . . Unauthorized Hacks 5 | . 2 3 . Terminals 3 | . 2 1 . Botnet 3 | . 2 1 . Fabricators . | . . . . Repair Stations . | . . . . Recycling Units . | . . . . Scanalyzers 2 | . . 2 . Extract 2 | . . 2 . Garrison Access . | . . . . Data Cores Recovered . | . . . . Used . | . . . . Hacking Detections 10 | . 7 1 2 Full Trace Events 2 | . 1 . 1 Feedback Events . | . . . . Feedback Blocked . | . . . . Robot Schematics Acquired . | . . . . Robots Built . | . . . . Authchips . | . . . . Time . | . . . . Total Robot Build Rating . | . . . . Part Schematics Acquired 5 | . . 5 . Parts Built . | . . . . Authchips . | . . . . Time . | . . . . Total Part Build Rating . | . . . . Parts Repaired . | . . . . Time . | . . . . Parts Recycled . | . . . . Recycled Matter . | . . . . Retrieved Matter . | . . . . Retrieved Components 3 | . 3 . . Parts Scanalyzed . | . . . . Part Schematics Acquired . | . . . . Parts Damaged . | . . . . Bothacking | -11 -10 -9 -9 ------------ Run | Yrd Mat Mat Sto Used RIF Installer . | . . . . Robots Hacked . | . . . . Non-combat . | . . . . Combat . | . . . . Robot Hacks Applied . | . . . . Relay Couplers Released . | . . . . Fabnet Peak Effective % . | . . . . Robots Rewired . | . . . . Allies Hacked . | . . . . Hacks Repelled . | . . . . Allies | -11 -10 -9 -9 -------- Run | Yrd Mat Mat Sto Total Allies . | . . . . Largest Group . | . . . . Highest-Rated Group . | . . . . Highest-Rated Ally . | . . . . Total Orders . | . . . . Ally Attacks . | . . . . Total Damage . | . . . . Kills . | . . . . Allies Corrupted . | . . . . Allies Melted . | . . . . Intel | -11 -10 -9 -9 ------- Run | Yrd Mat Mat Sto Active Infowar (turns) 695 | 20 204 369 102 Terrain 469 | . . 367 102 Seismic 695 | 20 204 369 102 Robot Analysis Total 2 | . 2 . . Derelict Logs Recovered . | . . . . Drone Launches . | . . . . Drone Recoveries . | . . . . Exploration | -11 -10 -9 -9 ------------- Run | Yrd Mat Mat Sto Turns Passed 737 | 62 204 369 102 Spaces Moved 660 | 43 212 304 101 Core 14 | 14 . . . Treads . | . . . . Legs . | . . . . Wheels 646 | 29 212 304 101 Hover . | . . . . Flight . | . . . . Fastest Speed 50 | 50 80 80 90 Average Speed 82 | 70 80 84 90 Slowest Speed 95 | 80 80 95 90 Overloaded Moves . | . . . . Propulsion Burnouts . | . . . . Robots Hopped . | . . . . Potential Cave-ins . | . . . . Cave-ins Triggered . | . . . . Exploration Rate (%) 19 | 3 32 23 21 Regions Visited 3 Branch Regions 1 Pre-discovered Areas . | . . . . Known Exits Taken . | . . . . Unknown Exits Taken 3 | 1 1 1 . Scrap Searched . | . . . . Spaces Dug . | . . . . Terrain Destroyed 27 | . . 27 . Melee . | . . . . Projectile . | . . . . AOE 27 | . . 27 . Terrain Rammed . | . . . . Walls Destroyed . | . . . . Machines Disabled . | . . . . Actions | -11 -10 -9 -9 --------- Run | Yrd Mat Mat Sto Total 773 | 68 240 356 109 Wait 43 | 8 19 15 1 Move 657 | 42 211 303 101 Hop . | . . . . Pick Up 15 | 9 3 1 2 Fast Attach 3 | 1 1 1 . Attach 7 | 5 . 2 . Detach . | . . . . Swap 8 | . 1 5 2 Drop 4 | . 2 . 2 Fire 36 | 3 3 29 1 Melee . | . . . . Ram . | . . . . Kick . | . . . . Crush . | . . . . Escape Stasis . | . . . . Rewire . | . . . . Trap . | . . . . Miscellaneous . | . . . . Route ------- -11/Scrapyard -10/Materials -9/Materials -9/Storage History --------- Turn | Location | Event 6 | -11/Scrapyard | Discovered new exit (range 15) 63 | -11/Scrapyard | Entered Materials 241 | -10/Materials | Discovered new exit (range 10) 267 | -10/Materials | Entered another Materials area 267 | -9/Materials | Evolved 2 slots: Utility x2 308 | -9/Materials | Build established: Mutant 506 | -9/Materials | Discovered new exit (range 16) 636 | -9/Materials | Entered Storage 738 | -9/Storage | Self-destructed Last Messages --------------- 00636_ Acquired 30 matter. LOCATION=UNKNOWN GOAL=ESCAPE 00654_ Storage Shell breached. 00660_ Dropped Lgt. Cannon. 00661_ Acquired Spread Laser. 00662_ Acquired Mining Laser. 00701_ Connecting with Terminal... 00701_ Current location identified: Storage >>Layout(Zone) Retrieving Zone 2W layout... Downloaded map data. 00721_ Connecting with Terminal... 00721_ ALERT: Suspicious activity at Terminal S005. Dispatching Investigation squad. 00729_ K-01 Serf collects debris. 00734_ Acquired 55 matter. 00736_ Dropped Assault Rifle. 00736_ Acquired Beam Cannon. 00738_ K-01 Serf collects debris. Map ----- +----------------------------------------------------+ | ???????????????????????????????????????????????? | | ???????????????????????????????????????????????? | | ???????????????????????????????????????????????? | | ???????????????????????????????????????????????? | | ???????????????????????????????????????????????? | | ???????????????????????????????????????????????? | | ???????????????????????????????????????????????? | | ??????????????????????????????????? ???????????? | | ?????????????????????????????????"?????????????? | | ????????????????????????? ???????? ???#????????? | | ???????????????????? ???????? ??????#??##?????#? | | ????????????????????????????????????#??????????? | | ??????????????????????????##????##?#??????#????? | | ???????????????????????????#?????##???????#??#?? | | ????????????????????????????????????????##?????? | | ?????????????????????#?????????? ????? ????????? | | ??????????????????????????????????????????????## | | ????????????????#????????????? ? ???? ????????? | | ????????????????????#?#?????? ?? ? ??#??#??#?? | | ?????????????????????#?####???? ??? ?#######?? | | ???????????????????#####T#########+##### #?? | | ???????????????????# #?? | | ??????????????? ???+ T #?? | | ???????????????????# #?# | | ???????????????????# ########### #?# | | ???????????????????#!!! [@% #?#??##??### ##?? | | ???????????????????#!!! ]= # """ """ ## ##?? | | ??????????????? !! # """ """ ## ##?# | | ????????????k r a + """ """ ## #??? | | ??????????? ! # # #??? | | ????????????#######+#### # ## #??? | | ?????????????????# ? T### ############ #??? | | ?????????????????#??###?# ## # #?#? | | ????????????? ?????? #### ### """"" # #??? | | ???????????????????? #### ##" """"" # ###? | | ???????????????????? ##?# ##T """"" # ###? | | ?????????????????? ? ##?# ##" + #??? | | ????????????????????###?# ### """"" # #### | | ????????????????????????# #?# """"" # ##?# | | ?????????????????????#?## #?# """"" # #?## | | ???????????????????????## ### # #??? | | ?????????????????????#??# #?###"T"#### #?#? | | ????????????????????????# ##??#"""##?# #??? | | ???????????????????#??#?# #?#?#####??# ###? | | ??????????????????????#?# #?##???#??## ###? | | ?????????????????????#?## ############ ##?? | | ???????????????????????## ## # #??? | | ??????????????????????#?# ## """" # #### | | ????????????????????#??## ## "/!" # ##?? | | ????????????????????????# ## "! + ##?# | +----------------------------------------------------+ Best States ------------- Heat Dissipation 28 Energy Generation 12 Energy Capacity 265 Matter Stores 300 Matter Capacity 300 Sight Range 16 Terrain Scan Range 16 Terrain Scan Density 85 Armor Coverage 150 Propulsion Shielding 33 Evasion (%) 50 Item Schematics ----------------- Structural Scanner | -9/Materials | Extracted Imp. Treads | -9/Materials | Extracted ECM Suite | -9/Materials | Extracted Hcp. Matter Pod | -9/Materials | Extracted Hcp. Storage Unit | -9/Materials | Extracted Robot Schematics ------------------ None Fabricated ------------ Nothing Repaired ---------- Nothing Alien Tech Used ----------------- None Achievements -------------- None Challenges ------------ None Game ------ Seed HardcellIonicDesublimator Manual? 0 Play Time 00:16:37 Cumulative 238.7 hours Start 2025.10.19 @ 18:06:29 End 2025.10.20 @ 17:53:53 Sessions 3 Manual Loads 0 Difficulty Rogue Special Mode None Game No. 432 Rogue 432 Adventurer 0 Explorer 0 Win Type - Total 1 Types 1/0/0/0/0/0/0/0/0/0 Lore% 30 Gallery% 48 Achievement% 39 Wizard Run 0 Options --------- Layout 1 ASCII 0 Keyboard 1 Movement Vi Keybinds 0 Fullscreen 0 Font 20/Smallcaps Map View 59x39 Zoom Use 0% Tactical HUD 1 Map Filters NONE Filters NONE Steam 1 RUN: 2c6ba0ab-7358-48cb-9d7a-928c8b8396c0